bitfinex/quotes_ETHUSD_20241003
["timestamp","ask_amount","ask_price","bid_price","bid_amount"]
[1727944056683,0.55,2340.6,2340.2,3.41849]
[1727944057003,0.55,2340.6,2340.1,3.41856]
[1727944057004,0.55,2340.6,2340.1,6.83712]
[1727944057150,0.55,2340.6,2339.7,1.1282]
[1727944057344,0.55,2340.6,2340.0,3.41875]
[1727944057544,1.062312,2340.6,2340.0,3.41875]
[1727944057889,0.55,2340.6,2340.4,3.41815]
[1727944058054,1.1552,2340.7,2340.5,3.41807]
[1727944058252,1.1552,2340.7,2340.2,3.41845]
[1727944058253,0.55,2340.6,2340.2,3.41845]
[1727944059042,0.55,2340.6,2340.2,3.41842]
[1727944059347,0.55,2340.6,2340.3,3.41835]
[1727944059550,1.1292,2341.0,2340.5,3.41796]
[1727944060142,1.1292,2341.0,2340.3,3.41836]
[1727944060538,3.41757,2340.9,2340.3,3.41836]
[1727944060793,1.1292,2341.0,2339.8,3.0]
[1727944060946,4.54661,2341.0,2340.4,6.83626]
[1727944061140,1.1292,2341.0,2340.7,3.4177]
[1727944061778,4.51049,2341.3,2340.7,3.41768]
[1727944062053,4.51049,2341.3,2340.5,3.41799]
[1727944062054,1.0935,2341.3,2340.5,3.41799]
[1727944062258,3.4179,2340.7,2340.0,4.5602]
[1727944062456,1.0935,2340.8,2340.0,3.4187]
[1727944062457,0.55,2340.6,2340.0,3.4187]
[1727944062650,0.55,2340.4,2340.0,3.4187]
[1727944062851,0.55,2340.4,2340.1,3.41857]
[1727944063084,0.55,2340.4,2339.6,3.41935]
[1727944063085,0.55,2340.4,2339.6,3.41924]
[1727944063240,0.55,2340.0,2339.5,3.41943]
[1727944063446,0.55,2340.0,2339.6,3.41934]
[1727944063890,0.55,2340.0,2339.3,3.41972]
[1727944064070,0.55,2339.6,2339.0,0.1157543]
[1727944064468,0.55,2339.6,2339.1,3.42001]
[1727944064859,1.0938,2339.9,2339.3,3.41973]
[1727944064860,4.51281,2339.9,2339.3,3.41973]
[1727944065084,1.0938,2339.9,2339.3,0.341973]
[1727944065247,1.0938,2339.9,2339.6,3.4193]
[1727944065248,0.55,2339.8,2339.6,3.4193]
[1727944065447,0.55,2339.8,2339.6,6.8386]
[1727944065658,0.55,2339.8,2339.7,3.41924]
[1727944065855,1.1032,2340.3,2340.1,3.41856]
[1727944066059,1.1032,2340.3,2339.7,4.103044]
[1727944066301,1.1032,2340.3,2339.4,3.41958]
[1727944066471,3.41863,2340.2,2339.6,3.41936]
[1727944066672,3.41869,2340.1,2339.6,3.41936]
[1727944066996,3.41869,2340.1,2339.1,7.92828]
[1727944066997,3.41863,2340.2,2339.1,4.0809]
[1727944067311,0.55,2340.2,2339.9,3.4188]
[1727944067471,1.1032,2340.3,2339.9,3.41893]
[1727944067902,1.1032,2340.3,2340.1,3.41864]
[1727944068120,3.41788,2340.7,2339.1,1.0809]
[1727944068121,1.1598,2340.6,2339.9,6.83769]
[1727944068345,3.41808,2340.5,2339.9,6.83769]
[1727944068498,4.57775,2340.6,2340.1,3.41865]
[1727944068974,4.57775,2340.6,2339.9,4.216709]
[1727944068975,1.1598,2340.6,2340.2,3.4185]
[1727944069177,1.1774,2341.0,2340.5,3.41807]
[1727944069441,1.1774,2341.0,2340.7,3.41777]
[1727944069716,1.1774,2341.0,2340.5,3.41793]
[1727944069910,1.1774,2341.0,2340.6,3.41784]
[1727944070124,3.41727,2341.1,2340.5,3.41799]
[1727944070274,1.1154,2341.2,2340.7,3.41767]
[1727944070471,4.5034,2341.5,2341.0,3.41726]
[1727944070700,1.0867,2341.5,2341.2,3.41704]
[1727944071115,1.0867,2341.5,2340.9,3.4174]
[1727944071422,1.1481,2340.9,2340.4,0.451429]
[1727944071628,1.1481,2340.9,2340.3,3.41836]
[1727944071629,7.98324,2340.9,2340.3,3.41836]
[1727944071789,4.56567,2340.9,2340.3,3.41836]
[1727944071993,4.56567,2340.9,2340.3,6.83663]
[1727944072202,4.56567,2340.9,2340.3,4.101933]
[1727944072405,4.56567,2340.9,2340.3,6.83655]
[1727944072592,0.55,2340.8,2340.4,3.4182]
[1727944072794,3.41781,2340.7,2340.2,3.41847]
[1727944073003,0.55,2340.6,2340.1,3.41857]
[1727944073213,3.96793,2340.6,2340.1,3.41857]
[1727944073387,1.1481,2340.9,2340.3,3.41834]
[1727944073587,0.55,2340.8,2340.4,3.41812]
[1727944073920,0.55,2340.8,2340.3,3.41834]
[1727944073921,1.1699,2341.3,2340.8,3.41763]
[1727944074096,4.58683,2341.3,2340.8,3.41763]
[1727944074430,4.58683,2341.3,2340.6,3.41786]
[1727944074830,4.58683,2341.3,2340.8,3.41759]
[1727944075187,4.58683,2341.3,2340.6,3.41786]
[1727944075383,0.55,2341.2,2340.7,3.41777]
[1727944075584,0.55,2341.2,2339.5,3.4194]
[1727944075585,3.41757,2340.9,2340.2,3.41837]
[1727944075836,6.83515,2340.9,2340.3,3.41826]
[1727944075987,1.6714,2340.8,2340.2,3.41837]
[1727944076312,0.55,2340.6,2340.2,3.41837]
[1727944076625,1.6714,2340.8,2340.4,3.4182]
[1727944076853,1.1214,2340.8,2340.4,3.41812]
[1727944077015,1.1214,2340.8,2340.6,3.41791]
[1727944077182,3.41724,2341.1,2340.6,3.41791]
[1727944077386,4.51374,2341.1,2340.6,3.41784]
[1727944077633,1.0965,2341.1,2340.7,3.41769]
[1727944077804,1.1511,2341.9,2340.6,0.341784]
[1727944078006,1.1511,2341.9,2341.8,3.41617]
[1727944078214,1.0948,2342.6,2341.9,3.416]
[1727944078414,3.41516,2342.5,2342.0,0.3416]
[1727944078621,3.41516,2342.5,2342.0,3.41587]
[1727944078936,3.41516,2342.5,2341.9,6.83188]
[1727944079113,1.0948,2342.6,2341.3,3.41687]
[1727944079114,1.0948,2342.6,2342.1,3.41572]
[1727944079295,3.41553,2342.3,2341.4,4.4989]
[1727944079495,3.41561,2342.2,2341.2,3.0]
[1727944079740,1.0948,2342.4,2341.1,1.0822]
[1727944079948,3.41618,2341.8,2341.1,1.0822]
[1727944080239,1.1502,2341.7,2341.2,3.41696]
[1727944080546,0.55,2341.6,2341.3,3.41687]
[1727944080785,0.55,2341.6,2341.2,3.41696]
[1727944081140,0.55,2341.4,2340.8,6.8351]
[1727944081339,0.55,2341.4,2341.0,3.41734]
[1727944081575,0.55,2341.5,2341.1,3.41718]
[1727944081786,0.55,2341.5,2340.8,3.41754]
[1727944081970,0.55,2341.3,2340.8,3.41754]
[1727944082284,0.55,2341.6,2341.1,3.41706]
[1727944082577,3.96649,2341.6,2341.1,3.41706]
[1727944082783,0.55,2341.6,2341.1,3.41706]
[1727944083102,0.55,2341.6,2341.3,3.41689]
[1727944083779,0.55,2341.6,2341.1,3.758816]
[1727944083780,1.1534,2342.1,2341.7,3.41624]
[1727944084369,1.1534,2342.1,2341.2,4.56852]
[1727944084370,3.41619,2341.8,2341.3,3.41682]
[1727944084548,3.41619,2341.8,2341.1,3.41711]
[1727944084865,3.41705,2341.2,2340.7,3.41768]
[1727944085041,3.41749,2340.9,2340.3,3.4183]
[1727944085240,3.41749,2340.9,2340.2,1.104]
[1727944085241,3.41749,2340.9,2340.2,3.41843]
[1727944085465,3.41749,2340.9,2339.7,3.41917]
[1727944085466,3.41831,2340.4,2339.9,3.41884]
[1727944085694,3.41831,2340.4,2339.7,3.41917]
[1727944085695,3.4184,2340.3,2339.7,3.41917]
[1727944085982,4.51566,2340.8,2339.9,3.41893]
[1727944085983,0.55,2340.2,2339.9,3.41893]
[1727944086188,0.55,2340.4,2339.9,3.41893]
[1727944086546,3.9683,2340.4,2339.7,7.296197]
[1727944086744,3.41874,2340.1,2339.5,3.4195]
[1727944086962,0.55,2340.0,2339.1,3.41999]
[1727944087253,0.55,2340.0,2339.7,3.41914]
[1727944087784,0.55,2339.9,2339.4,3.41957]
[1727944087938,0.55,2340.1,2339.0,3.5359743]
[1727944087939,0.55,2340.1,2339.6,3.41937]
[1727944088177,0.55,2340.1,2339.5,3.761397]
[1727944088499,0.55,2340.1,2339.5,0.341957]
[1727944088703,0.55,2339.9,2339.4,3.41956]
[1727944088903,0.55,2339.9,2339.5,3.41952]
[1727944089116,4.59164,2340.2,2339.0,4.6011943]
[1727944089117,1.173,2340.2,2339.0,4.6011943]
[1727944089400,1.173,2340.2,2339.7,3.41912]
[1727944089713,1.0869,2340.6,2340.1,3.41853]
[1727944089932,1.0869,2341.0,2340.2,0.341853]
[1727944090218,1.0869,2341.0,2340.8,3.41754]
[1727944090430,1.0928,2341.4,2341.1,3.41713]
[1727944090572,3.4164,2341.7,2341.2,3.758653]
[1727944090573,1.0928,2341.7,2341.2,3.758653]
[1727944090775,1.0928,2341.7,2341.1,3.41711]
[1727944090776,1.0928,2341.7,2341.3,3.41689]
[1727944090970,3.41655,2341.6,2340.9,3.41742]
[1727944091214,3.41669,2341.5,2340.9,3.41742]
[1727944091416,3.41711,2341.2,2340.7,3.41769]
[1727944091616,4.50915,2341.7,2340.7,3.41769]
[1727944091617,3.41704,2341.3,2340.7,3.41769]
[1727944091778,3.41703,2341.3,2340.5,3.41799]
[1727944091994,3.41703,2341.3,2340.4,1.837082]
[1727944091995,3.41722,2341.1,2340.4,4.101872]
[1727944092191,3.41722,2341.1,2340.6,3.41783]
[1727944092393,0.55,2341.0,2340.6,3.41783]
[1727944092831,0.55,2341.0,2340.4,3.41813]
[1727944092988,3.41795,2340.6,2340.0,3.4187]
[1727944093192,3.9672,2341.1,2340.1,3.41853]
[1727944093193,1.1517,2340.7,2340.1,3.41853]
[1727944093431,0.55,2340.6,2340.1,3.41853]
[1727944093630,3.0,2341.1,2339.7,3.41917]
[1727944093631,4.569,2341.1,2340.4,3.4181]
[1727944093930,1.1517,2341.1,2340.6,6.83575]
[1727944094093,4.53465,2341.6,2340.5,3.41801]
[1727944094302,4.53464,2341.6,2341.1,3.41718]
[1727944094490,4.53464,2341.6,2339.9,1.1241]
[1727944094491,3.41778,2340.7,2339.9,1.1241]
[1727944094690,3.41778,2340.7,2339.9,3.41883]
[1727944094691,3.41816,2340.5,2339.9,3.41883]
[1727944094931,6.83637,2340.5,2339.9,3.41883]
[1727944095104,3.41816,2340.5,2339.9,6.83769]
[1727944095312,1.1527,2340.1,2339.3,3.41975]
[1727944095669,0.55,2340.0,2339.4,3.41967]
[1727944095838,3.96885,2340.0,2339.4,3.41967]
[1727944096189,3.96885,2340.0,2339.3,3.41974]
[1727944096190,0.55,2340.0,2339.3,3.41974]
[1727944096395,4.57148,2340.1,2339.7,3.41924]
[1727944096396,1.1527,2340.1,2339.7,3.41924]
[1727944096690,3.0,2340.7,2339.7,0.683877]
[1727944096691,1.0897,2340.4,2339.7,0.683877]
[1727944096893,3.96845,2340.3,2339.7,3.41922]
[1727944097094,3.96845,2340.3,2339.6,3.41926]
[1727944097291,7.38692,2340.3,2339.7,3.41923]
[1727944097704,3.41866,2340.1,2339.6,3.41926]
[1727944099020,3.41905,2339.9,2339.4,3.41957]
[1727944099206,3.41905,2339.9,2339.2,4.57366]
[1727944099207,3.41852,2340.2,2339.5,3.4195]
[1727944099436,3.96903,2339.9,2339.1,3.92286943]
[1727944099635,0.55,2339.9,2339.3,3.41973]
[1727944099864,3.4191,2339.8,2339.3,3.41973]
[1727944100068,3.4191,2339.8,2339.2,0.40386237]
[1727944100069,3.41854,2340.2,2339.6,3.41937]
[1727944100362,0.55,2340.2,2339.8,3.41905]
[1727944100572,3.41841,2340.3,2339.8,4.102878]
[1727944100870,0.55,2340.3,2339.8,0.683828]
[1727944101271,0.55,2340.3,2339.8,4.102868]
[1727944101437,0.55,2340.3,2339.8,4.10150957]
[1727944101638,0.55,2340.3,2339.7,3.41923]
[1727944101841,3.41852,2340.2,2339.7,3.41923]
[1727944102251,0.55,2340.3,2339.8,3.41909]
[1727944102765,3.41852,2340.2,2339.0,0.5430543]
[1727944102968,0.55,2340.1,2339.1,0.35430543]
[1727944103275,3.41853,2340.2,2339.7,3.41913]
[1727944103439,4.266182,2340.2,2339.7,3.41913]
[1727944103651,1.0897,2340.4,2340.0,3.41876]
[1727944103967,1.0897,2340.4,2339.7,1.1039]
[1727944103968,1.1003,2341.1,2340.5,3.41793]
[1727944104176,4.51761,2341.1,2340.5,3.41793]
[1727944104378,1.552045,2341.1,2339.9,3.0]
[1727944104536,1.552045,2341.1,2340.6,6.83569]
[1727944104537,1.1003,2341.1,2340.6,6.83569]
[1727944104731,1.1003,2341.1,2340.8,3.41761]
[1727944105474,1.1003,2341.1,2340.6,3.41778]
[1727944106175,1.1003,2341.1,2340.6,3.41779]
[1727944106545,1.1003,2341.1,2340.7,3.41777]
[1727944106878,1.1003,2341.1,2340.6,3.41779]
[1727944107249,3.41734,2341.0,2340.4,3.41808]
[1727944107751,3.41734,2341.0,2340.2,3.41842]
[1727944107752,3.41757,2340.9,2340.2,3.41842]
[1727944107946,3.41757,2340.9,2340.4,3.4182]
[1727944107947,3.869357,2340.9,2340.4,3.4182]
[1727944108210,4.51758,2341.1,2340.4,3.4182]
[1727944108211,3.41747,2341.0,2340.4,3.4182]
[1727944108482,3.41747,2341.0,2340.5,3.41806]
[1727944108893,1.1003,2341.1,2340.6,3.41785]
[1727944109047,3.41748,2341.0,2340.4,6.83624]
[1727944109250,1.1432,2340.7,2340.1,0.41202]
[1727944109596,4.56187,2340.1,2339.6,3.41928]
[1727944109887,4.56187,2340.1,2339.6,6.83858]
[1727944110087,4.56187,2340.1,2339.6,7.522438]
[1727944110387,3.41889,2340.0,2339.5,3.41951]
[1727944110557,4.56187,2340.1,2339.4,3.41957]
[1727944110558,4.56187,2340.1,2339.6,3.41938]
[1727944110764,4.48198,2340.5,2339.9,3.41883]
[1727944110967,3.41826,2340.4,2339.9,3.41883]
[1727944111167,3.41826,2340.4,2339.3,1.0662]
[1727944111168,3.41917,2339.8,2339.3,3.41972]
[1727944111458,3.41917,2339.8,2338.8,3.42048]
[1727944111459,3.41925,2339.7,2339.1,6.84001]
[1727944111664,3.41908,2339.9,2339.1,3.41999]
[1727944111869,1.1664,2340.0,2339.2,0.35357443]
[1727944112176,8.00415,2340.0,2339.4,3.41967]
[1727944112361,1.1664,2340.0,2339.2,0.35357443]
[1727944112563,1.1664,2340.4,2340.0,3.41871]
[1727944112887,3.41852,2340.2,2339.7,3.41915]
[1727944113305,3.41852,2340.2,2339.6,3.41937]
[1727944113306,0.458492,2340.2,2339.6,3.41937]
[1727944113452,3.41845,2340.3,2339.6,3.41937]
[1727944113874,3.41852,2340.2,2339.6,3.41924]
[1727944114074,3.41845,2340.3,2339.7,3.41922]
[1727944114388,4.57900551,2340.4,2339.9,3.41894]
[1727944114692,3.41888,2340.0,2339.5,3.41945]
[1727944114994,1.16071551,2340.4,2339.3,1.0679]
[1727944115151,1.16071551,2340.4,2339.8,3.419]
[1727944115778,3.0,2340.7,2340.1,3.41857]
[1727944115779,3.41778,2340.7,2340.1,3.41857]
[1727944115993,3.41778,2340.7,2339.7,6.83833]
[1727944115994,3.41811,2340.5,2340.0,3.41878]
[1727944116194,3.41794,2340.6,2340.1,3.41859]
[1727944116401,6.83594,2340.6,2340.0,3.41878]
[1727944116559,6.83594,2340.6,2340.1,0.341878]
[1727944116560,3.41794,2340.6,2340.1,0.341878]
[1727944117103,3.4174,2341.0,2340.1,0.341878]
[1727944117262,3.41817,2340.5,2339.9,3.41884]
[1727944117456,3.41832,2340.4,2339.8,3.41908]
[1727944117695,1.0733,2340.4,2340.1,3.41862]
[1727944118373,1.0733,2340.4,2339.6,4.51082]
[1727944118374,1.0733,2340.8,2340.4,3.41818]
[1727944118615,3.41727,2341.1,2340.6,3.41783]
[1727944118919,1.0733,2341.2,2340.7,3.41777]
[1727944119125,1.0733,2341.2,2340.7,0.7177418]
[1727944119291,1.0733,2341.6,2340.9,3.41738]
[1727944119489,1.0733,2341.6,2341.1,3.41718]
[1727944119877,1.0733,2341.6,2341.2,3.41697]
[1727944120277,4.48942,2341.9,2341.3,3.41687]
[1727944120478,1.0733,2341.9,2341.5,3.41659]
[1727944120789,1.0733,2341.9,2341.0,3.4173]
[1727944121007,4.48933,2341.9,2341.4,3.41672]
[1727944121326,3.41626,2341.8,2341.2,3.41702]
[1727944121684,3.41634,2341.7,2341.2,3.41702]
[1727944121944,3.41654,2341.6,2341.0,3.41724]
[1727944122101,3.41676,2341.4,2340.8,4.509]
[1727944122302,3.41676,2341.4,2340.8,7.92655]
[1727944122618,3.41676,2341.4,2340.8,4.509]
[1727944122785,4.48936,2341.9,2341.1,3.41705]
[1727944122786,3.41626,2341.8,2341.1,3.41705]
[1727944122985,6.83254,2341.8,2341.2,3.41704]
[1727944123281,1.0733,2341.9,2341.2,4.10039]
[1727944123485,1.0733,2341.9,2341.4,3.41674]
[1727944123721,4.48938,2341.9,2341.4,3.41674]
[1727944124716,3.41584,2342.1,2341.5,1.1563]
[1727944124929,3.4159,2342.0,2341.5,4.57291]
[1727944125223,3.41568,2342.2,2341.6,3.41643]
[1727944125430,3.41568,2342.2,2341.7,3.41625]
[1727944125590,1.0866,2342.3,2341.6,3.873653]
[1727944125793,1.0866,2342.3,2341.8,3.41617]
[1727944126437,1.0866,2342.3,2342.0,3.41587]
[1727944126592,3.41508,2342.6,2342.0,6.83166]
[1727944126788,0.341508,2342.6,2342.1,3.41565]
[1727944126988,4.51095,2342.7,2342.1,3.41565]
[1727944127235,6.82933,2342.9,2342.3,3.41535]
[1727944127528,1.0844,2343.0,2342.5,3.41513]
[1727944127824,3.41503,2342.6,2342.1,1.0944]
[1727944128029,3.41531,2342.4,2341.9,3.41602]
[1727944128243,6.83071,2342.4,2341.9,3.41602]
[1727944128394,3.41511,2342.6,2341.9,3.41602]
[1727944128590,0.341511,2342.5,2341.7,1.0944]
[1727944128804,3.4151,2342.6,2342.0,3.41585]
[1727944129135,3.41464,2342.9,2342.4,3.41528]
[1727944129291,3.41464,2342.9,2342.4,3.756808]
[1727944129507,3.41464,2342.9,2342.4,3.41528]
[1727944130018,1.0844,2343.0,2342.4,3.41522]
[1727944130218,3.41434,2343.1,2342.6,3.41499]
[1727944130535,3.41489,2342.7,2342.2,3.41551]
[1727944130845,3.41489,2342.7,2342.0,4.58878]
[1727944131002,7.94727,2342.7,2342.0,4.58873]
[1727944131208,3.41502,2342.6,2342.1,3.41565]
[1727944131508,3.4153,2342.5,2342.0,1.173]
[1727944132008,6.83054,2342.5,2342.0,1.173]
[1727944132208,3.41531,2342.4,2342.0,1.173]
[1727944132431,3.41524,2342.5,2342.0,4.58887]
[1727944132632,3.4154,2342.4,2342.0,1.173]
[1727944132843,3.41524,2342.5,2342.0,1.173]
[1727944133049,3.41524,2342.5,2342.0,4.58887]
[1727944133407,3.41553,2342.3,2341.8,3.41604]
[1727944134307,0.55,2342.4,2341.4,1.1412]
[1727944134503,3.41545,2342.3,2341.4,1.1412]
[1727944134729,3.41545,2342.3,2341.8,3.41608]
[1727944134942,6.83103,2342.3,2341.7,3.41622]
[1727944135109,3.41545,2342.3,2341.7,3.41622]
[1727944135308,3.41545,2342.3,2341.7,6.83245]
[1727944135545,6.83097,2342.3,2341.7,3.41622]
[1727944135748,3.41611,2341.9,2341.4,1.1412]
[1727944136054,3.41629,2341.8,2341.4,1.1412]
[1727944136608,3.41611,2341.9,2341.4,4.55785]
[1727944136819,3.41611,2341.9,2341.4,4.55795]
[1727944137080,4.53243,2342.1,2341.4,1.83354576]
[1727944137285,3.41574,2342.1,2341.4,4.55793]
[1727944137490,3.41626,2341.8,2341.4,1.1412]
[1727944139150,3.41605,2341.9,2341.4,4.55784]
[1727944139352,3.41595,2342.0,2341.4,5.013653]
[1727944140187,3.4162,2341.8,2341.4,1.597013]
[1727944140398,4.091,2342.4,2341.0,6.41724]
[1727944140594,4.48812,2341.7,2341.0,6.41724]
[1727944140741,3.41662,2341.5,2341.0,3.41724]
[1727944140943,3.41662,2341.5,2341.0,4.100718]
[1727944141388,3.41641,2341.7,2341.2,3.41704]
[1727944141597,3.41641,2341.7,2341.0,4.100708]
[1727944141598,3.41641,2341.7,2341.0,6.83445]
[1727944141791,1.0717,2342.0,2340.7,4.51006]
[1727944141792,3.41728,2341.1,2340.7,1.0923]
[1727944141999,3.41728,2341.1,2340.4,4.48713]
[1727944142000,3.41729,2341.1,2340.4,4.48713]
[1727944142205,1.1106,2341.3,2340.5,0.448713]
[1727944142206,3.41756,2340.9,2340.5,0.448713]
[1727944142482,4.52752,2341.3,2340.5,3.866763]
[1727944142483,3.41728,2341.1,2340.5,3.866763]
[1727944142644,3.41728,2341.1,2340.6,3.41792]
[1727944142847,4.52759,2341.3,2340.4,1.069]
[1727944143048,3.41671,2341.5,2340.8,3.4175]
[1727944143243,4.51488,2341.6,2340.9,0.34175]
[1727944143550,1.0984,2341.6,2341.0,3.4172]
[1727944143752,3.41663,2341.5,2341.0,3.4172]
[1727944143953,3.41663,2341.5,2341.0,7.517923]
[1727944144169,0.448745,2341.9,2341.2,3.41694]
[1727944144170,4.57713,2341.9,2341.2,3.41694]
[1727944144355,1.161,2341.9,2341.5,3.41659]
[1727944144552,3.41584,2342.1,2341.6,0.683333]
[1727944144761,3.41605,2341.9,2341.4,3.41674]
[1727944145294,3.41583,2342.1,2341.6,3.41643]
[1727944145449,12.55083824,2343.2,2341.7,3.41623]
[1727944145450,3.41554,2342.3,2341.7,3.41623]
[1727944145660,3.41554,2342.3,2341.8,6.83218]
[1727944145870,3.41525,2342.5,2341.8,3.41609]
[1727944146099,3.41493,2342.7,2342.0,3.4158]
[1727944146100,3.41502,2342.6,2342.0,3.4158]
[1727944146264,1.467851,2342.9,2342.3,3.41535]
[1727944146265,4.54106,2342.9,2342.3,3.41535]
[1727944146600,0.454406,2343.2,2342.5,3.41512]
[1727944146601,3.41413,2343.2,2342.5,3.41512]
[1727944146749,3.41413,2343.2,2342.5,3.41506]
[1727944146750,3.41428,2343.1,2342.5,3.41506]
[1727944147481,3.41413,2343.2,2342.5,3.41506]
[1727944147686,3.41443,2343.0,2342.5,4.2496435]
[1727944148053,3.41457,2342.9,2342.5,0.8345835]
[1727944148248,3.41443,2343.0,2342.5,0.8345835]
[1727944148468,3.41422,2343.2,2342.5,4.2496035]
[1727944148469,3.96431,2343.1,2342.5,4.2496035]
[1727944148800,3.41422,2343.2,2342.6,0.42496035]
[1727944149000,7.95431,2343.4,2342.7,6.8295]
[1727944149153,4.54034,2343.4,2342.7,6.8295]
[1727944149353,4.54034,2343.4,2342.8,3.41469]
[1727944149556,4.54034,2343.4,2342.5,3.41505]
[1727944149557,3.41422,2343.2,2342.5,3.41505]
[1727944149760,3.41399,2343.3,2342.5,3.41505]
[1727944150008,3.41399,2343.3,2342.7,3.41485]
[1727944150603,3.41399,2343.3,2342.7,3.41477]
[1727944150768,3.41414,2343.2,2342.7,3.41477]
[1727944150949,3.41399,2343.3,2342.7,6.82954]
[1727944151150,3.41399,2343.3,2342.7,3.41477]
[1727944151355,3.41399,2343.3,2342.8,3.7903075]
[1727944151569,3.41399,2343.3,2342.8,0.3756275]
[1727944152482,3.41372,2343.5,2342.8,0.3756275]
[1727944152701,3.96384,2343.4,2342.9,3.41447]
[1727944152905,0.55,2343.4,2342.9,3.41447]
[1727944153196,1.1313,2343.8,2343.2,3.41402]
[1727944153408,4.54464,2343.8,2343.3,0.341402]
[1727944153552,4.54464,2343.8,2343.2,3.41402]
[1727944153755,3.41324,2343.9,2343.2,3.41402]
[1727944154105,3.41323,2343.9,2343.2,3.41402]
[1727944154255,3.41363,2343.6,2343.0,3.41431]
[1727944154460,3.754993,2343.6,2343.0,3.41431]
[1727944154661,6.82728,2343.6,2343.0,3.41431]
[1727944155281,3.41363,2343.6,2343.0,3.41431]
[1727944156169,3.41363,2343.6,2343.1,3.41427]
[1727944156566,0.55,2343.5,2342.9,1.1151]
[1727944156765,2.71396,2343.4,2342.8,3.41462]
[1727944156982,6.12794,2343.4,2342.8,4.508156]
[1727944157278,2.71396,2343.4,2342.9,3.41457]
[1727944157588,2.71396,2343.4,2342.8,4.508156]
[1727944157771,6.12789,2343.4,2342.8,4.508156]
[1727944158201,2.71396,2343.4,2342.9,3.41457]
[1727944158507,2.71396,2343.4,2342.8,4.508156]
[1727944158674,10.08618002,2343.5,2342.2,4.49081]
[1727944158876,0.55,2342.8,2342.0,3.4158]
[1727944159200,0.55,2342.8,2341.9,1.0694]
[1727944159201,3.41531,2342.4,2341.9,1.0694]
[1727944159358,3.41531,2342.4,2341.9,1.517944]
[1727944159581,3.4156,2342.2,2341.6,7.90213]
[1727944159920,3.4161,2341.9,2341.3,1.0694]
[1727944160080,5.03748,2342.3,2341.4,3.41673]
[1727944160081,3.41576,2342.1,2341.4,3.41673]
[1727944160276,3.96613,2341.9,2341.3,1.518035]
[1727944160508,3.96613,2341.9,2341.4,3.41673]
[1727944161122,3.41583,2342.1,2341.4,3.41666]
[1727944161303,3.41583,2342.1,2341.6,3.41644]
[1727944161627,3.41503,2342.6,2340.6,1.0694]
[1727944161628,3.55,2341.8,2340.6,1.0694]
[1727944161820,0.55,2341.4,2340.6,1.0694]
[1727944162026,6.96624,2341.8,2341.1,3.41708]
[1727944162516,3.41649,2341.6,2341.1,3.41715]
[1727944162722,3.41649,2341.6,2341.1,4.100589]
[1727944162876,3.41649,2341.6,2341.1,0.683439]
[1727944163080,3.96625,2341.8,2341.1,4.100579]
[1727944163395,3.96625,2341.8,2341.1,0.683439]
[1727944163540,3.41648,2341.6,2341.1,0.683439]
[1727944163716,3.41635,2341.7,2341.1,4.100599]
[1727944163902,3.41635,2341.7,2341.2,0.4100679]
[1727944164099,3.96625,2341.8,2341.2,3.8270979]
[1727944164298,1.072,2341.9,2341.4,3.41668]
[1727944164535,1.072,2341.9,2341.5,0.449638]
[1727944164805,1.072,2341.9,2341.3,1.0797]
[1727944164806,3.41617,2341.8,2341.3,1.0797]
[1727944165502,3.55,2341.7,2340.8,4.53764]
[1727944165810,3.4169,2341.3,2340.9,0.453764]
[1727944166006,3.41706,2341.2,2340.5,4.53807]
[1727944166224,3.41706,2341.2,2340.6,0.384529]
[1727944166410,1.154,2341.3,2340.7,6.83534]
[1727944166612,3.41661,2341.6,2340.9,3.4174]
[1727944166831,3.41661,2341.6,2340.9,3.75914]
[1727944166832,3.9667,2341.5,2340.9,3.75914]
[1727944167242,3.41679,2341.4,2340.9,0.34174]
[1727944167543,7.38316,2341.6,2340.9,3.41737]
[1727944167745,7.38311,2341.6,2341.1,3.41718]
[1727944167914,3.96655,2341.6,2341.1,3.758808]
[1727944168313,0.55,2341.6,2341.1,7.175918]
[1727944168535,0.55,2341.6,2341.1,3.758808]
[1727944168850,0.55,2341.2,2340.5,4.53808]
[1727944169222,0.55,2341.4,2340.7,3.41774]
[1727944169537,3.96686,2341.4,2340.8,3.41754]
[1727944169717,0.55,2341.4,2340.9,4.101011]
[1727944169915,0.55,2341.4,2340.9,3.41748]
[1727944170363,0.55,2341.4,2340.9,3.4174]
[1727944170648,3.41665,2341.5,2341.0,3.41725]
[1727944171145,3.41663,2341.5,2341.0,3.41725]
[1727944171551,3.9665,2341.6,2341.0,3.41725]
[1727944171707,0.55,2341.6,2341.1,3.41708]
[1727944172053,3.41563,2342.2,2341.1,3.41708]
[1727944172054,0.85719133,2342.6,2341.3,6.55178002]
[1727944172352,1.1547,2343.0,2342.4,3.41518]
[1727944172552,1.1547,2343.0,2342.0,3.0]
[1727944172553,3.41509,2342.6,2342.0,6.83158]
[1727944172712,3.41509,2342.6,2342.0,3.41578]
[1727944172918,6.83019,2342.6,2342.0,3.41578]
[1727944173239,6.83019,2342.6,2341.8,4.56062]
[1727944173240,0.683019,2342.6,2341.8,4.56062]
[1727944173557,0.683019,2342.6,2341.5,4.50061]